fUSD/lending_fUSD_20250623
["ID","MTS","AMOUNT","RATE_DAILY","PERIOD"]
[367128337,1750665049556,-490.0,0.00027397,3]
[367128338,1750665049566,-490.0,0.00027397,3]
[367128339,1750665049576,-490.0,0.00027397,3]
[367128340,1750665049586,-490.0,0.00027397,3]
[367128341,1750665049596,-490.0,0.00027397,3]
[367128342,1750665049605,-490.0,0.00027397,3]
[367128343,1750665049619,-880.29,0.00027397,3]
[367128344,1750665049629,-490.0,0.00027397,3]
[367128345,1750665049639,-1269.91,0.00027397,3]
[367128346,1750665049649,-710.25,0.00027397,3]
[367128347,1750665049659,-490.0,0.00027397,3]
[367128348,1750665049670,-490.0,0.00027397,3]
[367128349,1750665049679,-813.4,0.00027397,3]
[367128350,1750665049689,-490.0,0.00027397,3]
[367128351,1750665049699,-490.0,0.00027397,3]
[367128352,1750665049708,-2095.98,0.00027397,3]
[367128353,1750665049718,-490.0,0.00027397,3]
[367128354,1750665049728,-490.0,0.00027397,3]
[367128355,1750665049737,-490.0,0.00027397,3]
[367128356,1750665049747,-490.0,0.00027397,3]
[367128357,1750665049756,-500.0,0.00027397,3]
[367128358,1750665049766,-860.56,0.00027397,3]
[367128359,1750665049776,-390.27234186,0.00027397,3]
[367128360,1750665049785,-500.0,0.00027397,2]
[367128361,1750665049795,-490.0,0.00027397,3]
[367128362,1750665049804,-500.0,0.00027397,2]
[367128363,1750665049814,-500.0,0.00027397,2]
[367128364,1750665049824,-500.0,0.00027397,2]
[367128365,1750665049834,-500.0,0.00027397,2]
[367128366,1750665049844,-500.0,0.00027397,2]
[367128367,1750665049854,-500.0,0.00027397,2]
[367128368,1750665049865,-500.0,0.00027397,2]
[367128369,1750665049875,-359.14151047,0.00027397,3]
[367128370,1750665049886,-490.0,0.00027397,3]
[367128371,1750665049896,-500.0,0.00027397,2]
[367128372,1750665049906,-500.0,0.00027397,2]
[367128373,1750665049919,-1189.08,0.00027397,3]
[367128374,1750665049929,-500.0,0.00027397,2]
[367128375,1750665049939,-500.0,0.00027397,2]
[367128376,1750665049951,-500.0,0.00027397,2]
[367128377,1750665049962,-500.0,0.00027397,2]
[367128378,1750665049972,-490.0,0.00027397,3]
[367128379,1750665049981,-500.0,0.00027397,2]
[367128380,1750665049991,-500.0,0.00027397,2]
[367128381,1750665050001,-500.0,0.00027397,2]
[367128382,1750665050011,-490.0,0.00027397,3]
[367128383,1750665050020,-500.0,0.00027397,2]
[367128384,1750665050030,-511.24282641,0.00027397,3]
[367128385,1750665050039,-490.0,0.00027397,3]
[367128386,1750665050049,-490.0,0.00027397,2]
[367128387,1750665050058,-490.0,0.00027397,3]
[367128388,1750665050067,-267.19938365,0.00027397,3]
[367128389,1750665050076,-500.0,0.00027397,2]
[367128390,1750665050085,-592.68,0.00027397,3]
[367128391,1750665050095,-490.0,0.00027397,3]
[367128392,1750665050104,-500.0,0.00027397,2]
[367128393,1750665050114,-500.0,0.00027397,2]
[367128394,1750665050123,-444.96710102,0.00027397,2]
[367128395,1750665050133,-490.0,0.00027397,3]
[367128396,1750665050143,-242.71725468,0.00027397,3]
[367128397,1750665050153,-693.19,0.00027397,2]
[367128398,1750665050163,-1404.19,0.00027397,3]
[367128399,1750665050172,-490.0,0.00027397,3]
[367128400,1750665050182,-490.0,0.00027397,3]
[367128401,1750665050193,-490.0,0.00027397,3]
[367128402,1750665050203,-490.0,0.00027397,3]
[367128403,1750665050213,-491.41035758,0.00027397,3]
[367128404,1750665050223,-1041.14,0.00027397,3]
[367128405,1750665050234,-490.0,0.00027397,3]
[367128406,1750665050243,-490.0,0.00027397,3]
[367128407,1750665050252,-490.0,0.00027397,3]
[367128408,1750665050263,-1153.44,0.00027397,3]
[367128409,1750665050276,-562.57,0.00027397,3]
[367128410,1750665050285,-490.0,0.00027397,3]
[367128411,1750665050296,-490.0,0.00027397,3]
[367128412,1750665050306,-490.0,0.00027397,3]
[367128413,1750665050316,-490.0,0.00027397,3]
[367128414,1750665050326,-500.0,0.00027397,3]
[367128415,1750665050336,-500.0,0.00027397,3]
[367128416,1750665050345,-490.0,0.00027397,3]
[367128417,1750665050355,-490.0,0.00027397,3]
[367128418,1750665050365,-490.0,0.00027397,3]
[367128419,1750665050374,-490.0,0.00027397,3]
[367128420,1750665050384,-1104.92,0.00027397,3]
[367128421,1750665050393,-490.0,0.00027397,3]
[367128422,1750665050404,-490.0,0.00027397,3]
[367128423,1750665050415,-490.9953592,0.00027397,3]
[367128424,1750665050427,-490.0,0.00027397,3]
[367128425,1750665050437,-1408.6,0.00027397,3]
[367128426,1750665050447,-490.0,0.00027397,3]
[367128427,1750665050457,-490.0,0.00027397,3]
[367128428,1750665050469,-490.0,0.00027397,3]
[367128429,1750665050479,-490.0,0.00027397,3]
[367128430,1750665050488,-490.0,0.00027397,3]
[367128431,1750665050498,-490.0,0.00027397,3]
[367128432,1750665050508,-490.0,0.00027397,3]
[367128433,1750665050517,-490.0,0.00027397,2]
[367128434,1750665050526,-490.0,0.00027397,3]
[367128435,1750665050536,-490.0,0.00027397,3]
[367128436,1750665050545,-1311.06,0.00027397,3]
[367128437,1750665050554,-490.0,0.00027397,3]
[367128438,1750665050563,-1000.0,0.00027397,30]
[367128439,1750665050573,-1000.0,0.00027397,30]
[367128440,1750665050582,-490.0,0.00027397,3]
[367128441,1750665050591,-486.33224295,0.00027397,30]
[367128442,1750665050602,-490.0,0.00027397,2]
[367128443,1750665050612,-490.0,0.00027397,3]
[367128444,1750665050621,-1143.07,0.00027397,3]
[367128445,1750665050631,-490.0,0.00027397,3]
[367128446,1750665050640,-490.0,0.00027397,3]
[367128447,1750665050649,-490.0,0.00027397,3]
[367128448,1750665050659,-490.0,0.00027397,3]
[367128449,1750665050668,-490.0,0.00027397,3]
[367128450,1750665050677,-1915.03,0.00027397,3]
[367128451,1750665050686,-490.0,0.00027397,3]
[367128452,1750665050695,-490.0,0.00027397,2]
[367128453,1750665050705,-490.0,0.00027397,3]
[367128454,1750665050714,-490.0,0.00027397,3]
[367128455,1750665050723,-490.0,0.00027397,3]
[367128456,1750665050732,-490.0,0.00027397,3]
[367128457,1750665050742,-490.0,0.00027397,3]
[367128458,1750665050751,-1096.22,0.00027397,3]
[367128459,1750665050761,-504.47310968,0.00027397,3]
[367128460,1750665050770,-490.0,0.00027397,3]
[367128461,1750665050780,-1133.12,0.00027397,3]
[367128462,1750665050789,-763.88,0.00027397,3]
[367128463,1750665050798,-514.28870565,0.00027397,3]
[367128464,1750665050808,-490.0,0.00027397,3]
[367128465,1750665050817,-490.0,0.00027397,3]
[367128466,1750665050827,-490.0,0.00027397,3]
[367128467,1750665050836,-490.0,0.00027397,3]
[367128468,1750665050846,-491.79931684,0.00027397,3]
[367128469,1750665050855,-490.0,0.00027397,3]
[367128470,1750665050865,-490.0,0.00027397,3]
[367128471,1750665050874,-490.0,0.00027397,3]
[367128472,1750665050885,-490.0,0.00027397,3]
[367128473,1750665050894,-1026.56,0.00027397,3]
[367128474,1750665050904,-490.26640777,0.00027397,3]
[367128475,1750665050915,-490.0,0.00027397,3]
[367128476,1750665050929,-266.43,0.00027397,2]
[367128477,1750665050938,-490.0,0.00027397,3]
[367128478,1750665050947,-490.0,0.00027397,3]
[367128479,1750665050956,-490.0,0.00027397,3]
[367128480,1750665050966,-490.0,0.00027397,3]
[367128481,1750665050976,-1230.65,0.00027397,3]
[367128482,1750665050985,-561.77385338,0.00027397,3]
[367128483,1750665050998,-490.0,0.00027397,3]
[367128484,1750665051007,-1008.53,0.00027397,3]
[367128485,1750665051016,-490.0,0.00027397,3]
[367128486,1750665051027,-300.0,0.00027397,3]
[367128487,1750665051036,-487.19111733,0.00027397,3]
[367128488,1750665051046,-490.0,0.00027397,3]
[367128489,1750665051058,-1722.2,0.00027397,3]
[367128490,1750665051067,-490.0,0.00027397,3]
[367128491,1750665051077,-490.0,0.00027397,3]
[367128492,1750665051087,-1588.78,0.00027397,3]
[367128493,1750665051097,-490.0,0.00027397,3]
[367128494,1750665051107,-490.0,0.00027397,3]
[367128495,1750665051116,-490.0,0.00027397,3]
[367128496,1750665051126,-490.0,0.00027397,3]
[367128497,1750665051135,-490.0,0.00027397,3]
[367128498,1750665051144,-490.0,0.00027397,3]
[367128499,1750665051154,-490.0,0.00027397,3]
[367128500,1750665051164,-490.0,0.00027397,3]
[367128501,1750665051173,-896.42,0.00027397,3]
[367128502,1750665051182,-490.0,0.00027397,3]
[367128503,1750665051192,-961.21,0.00027397,3]
[367128504,1750665051201,-490.0,0.00027397,3]
[367128505,1750665051210,-490.0,0.00027397,3]
[367128506,1750665051219,-490.0,0.00027397,3]
[367128507,1750665051229,-633.05,0.00027397,3]
[367128508,1750665051238,-490.0,0.00027397,3]
[367128509,1750665051247,-1004.66876006,0.00027397,3]
[367128510,1750665051256,-500.0,0.00027397,2]
[367128511,1750665051266,-1367.92,0.00027397,3]
[367128512,1750665051275,-500.0,0.00027397,2]
[367128513,1750665051285,-500.0,0.00027397,2]
[367128514,1750665051295,-500.0,0.00027397,2]
[367128515,1750665051304,-490.0,0.00027397,3]
[367128516,1750665051314,-490.0,0.00027397,3]
[367128517,1750665051323,-500.0,0.00027397,2]
[367128518,1750665051333,-500.0,0.00027397,2]
[367128519,1750665051345,-500.0,0.00027397,2]
[367128520,1750665051355,-500.0,0.00027397,2]
[367128521,1750665051365,-490.0,0.00027397,3]
[367128522,1750665051375,-500.0,0.00027397,2]
[367128523,1750665051385,-500.0,0.00027397,2]
[367128524,1750665051395,-844.81,0.00027397,3]
[367128525,1750665051404,-500.0,0.00027397,2]
[367128526,1750665051413,-500.0,0.00027397,2]
[367128527,1750665051423,-493.24278846,0.00027397,3]
[367128528,1750665051432,-500.0,0.00027397,2]
[367128529,1750665051441,-542.77,0.00027397,3]
[367128530,1750665051452,-500.0,0.00027397,2]
[367128531,1750665051461,-490.0,0.00027397,3]
[367128532,1750665051471,-500.0,0.00027397,2]
[367128533,1750665051480,-500.0,0.00027397,2]
[367128534,1750665051489,-500.0,0.00027397,2]
[367128535,1750665051498,-490.0,0.00027397,3]
[367128536,1750665051509,-500.0,0.00027397,3]
[367128537,1750665051519,-292.57,0.00027397,2]
[367128538,1750665051530,-500.0,0.00027397,3]
[367128539,1750665051540,-490.0,0.00027397,3]
[367128540,1750665051553,-611.73,0.00027397,3]
[367128541,1750665051562,-219.24871219,0.00027397,3]
[367128542,1750665051573,-490.0,0.00027397,3]
[367128543,1750665051584,-807.21,0.00027397,3]
[367128544,1750665051594,-487.96945855,0.00027397,3]
[367128545,1750665051605,-490.0,0.00027397,3]
[367128546,1750665051615,-362.41801606,0.00027397,3]
[367128547,1750665051624,-585.9173908,0.00027397,3]
[367128548,1750665051634,-491.48028437,0.00027397,3]
[367128549,1750665051643,-154.6004586,0.00027397,3]
[367128550,1750665051654,-538.48281133,0.00027397,3]
[367128551,1750665051663,-351.29572711,0.00027397,3]
[367128552,1750665051673,-490.0,0.00027397,3]
[367128553,1750665051682,-490.0,0.00027397,3]
[367128554,1750665051691,-956.99,0.00027397,3]
[367128555,1750665051701,-1617.12,0.00027397,3]
[367128556,1750665051710,-490.0,0.00027397,3]
[367128557,1750665051719,-490.0,0.00027397,3]
[367128558,1750665051728,-490.0,0.00027397,3]
[367128559,1750665051738,-490.0,0.00027397,3]
[367128560,1750665051747,-500.0,0.00027397,3]
[367128561,1750665051756,-490.0,0.00027397,3]
[367128562,1750665051766,-500.0,0.00027397,3]
[367128563,1750665051775,-500.0,0.00027397,3]
[367128564,1750665051785,-500.0,0.00027397,3]
[367128565,1750665051794,-490.0,0.00027397,3]
[367128566,1750665051803,-500.0,0.00027397,3]
[367128567,1750665051813,-500.0,0.00027397,3]
[367128568,1750665051823,-500.0,0.00027397,3]
[367128569,1750665051832,-490.0,0.00027397,3]
[367128570,1750665051841,-490.0,0.00027397,3]
[367128571,1750665051850,-490.0,0.00027397,3]
[367128572,1750665051859,-848.71,0.00027397,3]
[367128573,1750665051869,-790.76,0.00027397,3]
[367128574,1750665051878,-613.34,0.00027397,3]
[367128575,1750665051887,-490.0,0.00027397,3]
[367128576,1750665051896,-490.0,0.00027397,3]
[367128577,1750665051905,-742.62,0.00027397,3]
[367128578,1750665051915,-2760.23,0.00027397,3]
[367128579,1750665051928,-237.38533067,0.00027397,3]
[367128580,1750665051937,-230.16497298,0.00027397,3]
[367128581,1750665051947,-492.41485868,0.00027397,3]
[367128582,1750665051956,-2345.46,0.00027397,2]
[367128583,1750665051967,-492.94469255,0.00027397,3]
[367128584,1750665051976,-490.0,0.00027397,3]
[367128585,1750665051985,-490.0,0.00027397,3]
[367128586,1750665051994,-490.0,0.00027397,3]
[367128587,1750665052005,-490.0,0.00027397,3]
[367128588,1750665052014,-1288.97,0.00027397,3]
[367128589,1750665052023,-490.0,0.00027397,3]
[367128590,1750665052032,-491.03799308,0.00027397,3]
[367128591,1750665052041,-487.58669622,0.00027397,3]
[367128592,1750665052049,-500.0,0.00027397,3]
[367128593,1750665052058,-500.0,0.00027397,3]
[367128594,1750665052067,-1422.0,0.00027397,3]
[367128595,1750665052075,-517.81182484,0.00027397,3]
[367128596,1750665052084,-490.0,0.00027397,3]
[367128597,1750665052093,-1019.17,0.00027397,3]
[367128598,1750665052102,-491.89745248,0.00027397,3]
[367128599,1750665052111,-273.5390621,0.00027397,3]
[367128600,1750665052120,-490.0,0.00027397,3]
[367128601,1750665052129,-1327.38,0.00027397,3]
[367128602,1750665052139,-491.06881529,0.00027397,3]
[367128603,1750665052149,-490.0,0.00027397,3]
[367128604,1750665052163,-493.0412646,0.00027397,3]
[367128605,1750665052177,-490.0,0.00027397,3]
[367128606,1750665052190,-608.9,0.00027397,3]
[367128607,1750665052200,-490.0,0.00027397,3]
[367128608,1750665052213,-490.0,0.00027397,3]
[367128609,1750665052227,-494.86745891,0.00027397,3]
[367128610,1750665052240,-490.0,0.00027397,3]
[367128611,1750665052253,-490.0,0.00027397,3]
[367128612,1750665052266,-1180.83,0.00027397,3]
[367128613,1750665052278,-490.0,0.00027397,3]
[367128614,1750665052290,-490.0,0.00027397,3]
[367128615,1750665052300,-490.0,0.00027397,3]
[367128616,1750665052313,-692.81,0.00027397,3]
[367128617,1750665052326,-490.0,0.00027397,3]
[367128618,1750665052338,-490.0,0.00027397,3]
[367128619,1750665052351,-215.78820062,0.00027397,3]
[367128620,1750665052364,-490.0,0.00027397,3]
[367128621,1750665052377,-490.0,0.00027397,3]
[367128622,1750665052390,-211.23375528,0.00027397,3]
[367128623,1750665052402,-497.326077,0.00027397,3]
[367128624,1750665052416,-778.5,0.00027397,3]
[367128625,1750665052429,-490.0,0.00027397,3]
[367128626,1750665052442,-490.0,0.00027397,3]
[367128627,1750665052455,-1065.89,0.00027397,3]
[367128628,1750665052468,-637.7,0.00027397,3]
[367128629,1750665052481,-490.0,0.00027397,3]
[367128630,1750665052496,-492.08503644,0.00027397,3]
[367128631,1750665052508,-490.0,0.00027397,3]
[367128632,1750665052520,-490.0,0.00027397,3]
[367128633,1750665052532,-490.0,0.00027397,3]
[367128634,1750665052542,-490.0,0.00027397,3]
[367128635,1750665052553,-1166.57,0.00027397,3]
[367128636,1750665052564,-625.83,0.00027397,3]
[367128637,1750665052580,-495.83476991,0.00027397,3]
[367128638,1750665052592,-1508.28,0.00027397,3]
[367128639,1750665052602,-526.99,0.00027397,3]
[367128640,1750665052613,-613.21,0.00027397,3]
[367128641,1750665052624,-1559.17,0.00027397,3]
[367128642,1750665052638,-490.0,0.00027397,3]
[367128643,1750665052651,-210.0,0.00027397,3]
[367128644,1750665052662,-492.0966254,0.00027397,3]
[367128645,1750665052673,-610.21,0.00027397,3]
[367128646,1750665052684,-714.94,0.00027397,3]
[367128647,1750665052696,-963.94,0.00027397,3]
[367128648,1750665052708,-868.65,0.00027397,3]
[367128649,1750665052719,-522.44119276,0.00027397,3]
[367128650,1750665052730,-490.0,0.00027397,3]
[367128651,1750665052742,-1081.49,0.00027397,3]
[367128652,1750665052753,-490.0,0.00027397,3]
[367128653,1750665052764,-492.08777401,0.00027397,3]
[367128654,1750665052776,-490.0,0.00027397,3]
[367128655,1750665052788,-566.45,0.00027397,3]
[367128656,1750665052800,-165.54556138,0.00027397,3]
[367128657,1750665052811,-1232.32,0.00027397,3]
[367128658,1750665052823,-1100.0,0.00027397,3]
[367128659,1750665052833,-490.0,0.00027397,3]
[367128660,1750665052845,-492.28801825,0.00027397,3]
[367128661,1750665052856,-490.0,0.00027397,3]
[367128662,1750665052868,-490.0,0.00027397,3]
[367128663,1750665052880,-1694.0,0.00027397,3]
[367128664,1750665052892,-490.0,0.00027397,3]
[367128665,1750665052903,-490.0,0.00027397,3]
[367128666,1750665052916,-1228.14,0.00027397,3]
[367128667,1750665052929,-490.0,0.00027397,3]
[367128668,1750665052942,-818.43,0.00027397,3]
[367128669,1750665052954,-490.0,0.00027397,3]
[367128670,1750665052967,-495.98860647,0.00027397,3]
[367128671,1750665052978,-490.0,0.00027397,3]
[367128672,1750665052989,-490.0,0.00027397,3]
[367128673,1750665053000,-500.0,0.00027397,3]
[367128674,1750665053012,-500.0,0.00027397,3]
[367128675,1750665053023,-500.0,0.00027397,3]
[367128676,1750665053034,-500.0,0.00027397,3]
[367128677,1750665053045,-490.0,0.00027397,3]
[367128678,1750665053056,-490.0,0.00027397,3]
[367128679,1750665053067,-500.0,0.00027397,3]
[367128680,1750665053079,-500.0,0.00027397,3]
[367128681,1750665053091,-500.0,0.00027397,3]
[367128682,1750665053105,-500.0,0.00027397,3]
[367128683,1750665053119,-500.0,0.00027397,3]
[367128684,1750665053132,-490.0,0.00027397,3]
[367128685,1750665053144,-500.0,0.00027397,3]
[367128686,1750665053157,-491.633584,0.00027397,3]
[367128687,1750665053168,-500.0,0.00027397,3]
[367128688,1750665053180,-500.0,0.00027397,3]
[367128689,1750665053192,-500.0,0.00027397,3]
[367128690,1750665053209,-500.0,0.00027397,3]
[367128691,1750665053222,-493.74126418,0.00027397,3]
[367128692,1750665053233,-500.0,0.00027397,3]
[367128693,1750665053245,-490.0,0.00027397,3]
[367128694,1750665053256,-500.0,0.00027397,3]
[367128695,1750665053268,-835.03,0.00027397,3]
[367128696,1750665053280,-500.0,0.00027397,3]
[367128697,1750665053292,-433.87928981,0.00027397,3]
[367128698,1750665053303,-595.22,0.00027397,3]
[367128699,1750665053314,-491.07709627,0.00027397,3]
[367128700,1750665053326,-551.94,0.00027397,3]
[367128701,1750665053337,-490.0,0.00027397,3]
[367128702,1750665053348,-490.0,0.00027397,3]
[367128703,1750665053359,-490.0,0.00027397,3]
[367128704,1750665053370,-361.29693994,0.00027397,3]
[367128705,1750665053381,-490.0,0.00027397,3]
[367128706,1750665053393,-490.0,0.00027397,3]
[367128707,1750665053403,-490.0,0.00027397,3]
[367128708,1750665053415,-212.81100995,0.00027397,3]
[367128709,1750665053427,-490.0,0.00027397,3]
[367128710,1750665053439,-1222.96,0.00027397,3]
[367128711,1750665053451,-490.0,0.00027397,3]
[367128712,1750665053463,-490.0,0.00027397,3]
[367128713,1750665053477,-490.0,0.00027397,3]
[367128714,1750665053488,-490.0,0.00027397,3]
[367128715,1750665053499,-490.0,0.00027397,3]
[367128716,1750665053512,-880.33,0.00027397,3]
[367128717,1750665053523,-490.0,0.00027397,3]
[367128718,1750665053533,-490.0,0.00027397,3]
[367128719,1750665053545,-1308.03,0.00027397,3]
[367128720,1750665053557,-490.0,0.00027397,3]
[367128721,1750665053568,-490.0,0.00027397,3]
[367128722,1750665053579,-490.0,0.00027397,3]
[367128723,1750665053591,-749.38,0.00027397,3]
[367128724,1750665053602,-490.0,0.00027397,3]
[367128725,1750665053615,-212.43114484,0.00027397,3]
[367128726,1750665053627,-490.0,0.00027397,3]
[367128727,1750665053638,-490.0,0.00027397,3]
[367128728,1750665053651,-588.0,0.00027397,3]
[367128729,1750665053663,-493.6084318,0.00027397,3]
[367128730,1750665053674,-906.2,0.00027397,3]
[367128731,1750665053685,-490.0,0.00027397,3]
[367128732,1750665053696,-490.0,0.00027397,3]
[367128733,1750665053707,-632.2,0.00027397,3]
[367128734,1750665053718,-490.0,0.00027397,3]
[367128735,1750665053730,-736.07,0.00027397,3]
[367128736,1750665053742,-497.35452181,0.00027397,3]
[367128737,1750665053753,-490.0,0.00027397,3]
[367128738,1750665053764,-490.0,0.00027397,3]
[367128739,1750665053775,-490.0,0.00027397,3]
[367128740,1750665053787,-491.7063151,0.00027397,3]
[367128741,1750665053798,-490.0,0.00027397,3]
[367128742,1750665053810,-496.90798925,0.00027397,3]
[367128743,1750665053822,-490.0,0.00027397,3]
[367128744,1750665053833,-1159.93,0.00027397,3]
[367128745,1750665053845,-490.0,0.00027397,3]
[367128746,1750665053856,-1069.47,0.00027397,3]
[367128747,1750665053867,-490.0,0.00027397,3]
[367128748,1750665053879,-1069.47,0.00027397,3]
[367128749,1750665053891,-717.88,0.00027397,3]
[367128750,1750665053903,-490.0,0.00027397,3]
[367128751,1750665053916,-490.0,0.00027397,3]
[367128752,1750665053932,-490.0,0.00027397,3]
[367128753,1750665053944,-793.46,0.00027397,3]
[367128754,1750665053955,-453.89425983,0.00027397,3]
[367128755,1750665053967,-490.0,0.00027397,3]
[367128756,1750665053978,-490.0,0.00027397,3]
[367128757,1750665053990,-490.0,0.00027397,3]
[367128758,1750665054002,-1185.89,0.00027397,3]
[367128759,1750665054014,-492.75894728,0.00027397,3]
[367128760,1750665054025,-490.0,0.00027397,3]
[367128761,1750665054037,-1745.89,0.00027397,3]
[367128762,1750665054048,-490.0,0.00027397,3]
[367128763,1750665054059,-1156.86,0.00027397,3]
[367128764,1750665054071,-491.8880246,0.00027397,3]
[367128765,1750665054082,-490.0,0.00027397,3]
[367128766,1750665054094,-490.0,0.00027397,3]
[367128767,1750665054106,-991.3,0.00027397,3]
[367128768,1750665054117,-490.0,0.00027397,3]
[367128769,1750665054128,-490.0,0.00027397,3]
[367128770,1750665054139,-490.0,0.00027397,3]
[367128771,1750665054150,-490.0,0.00027397,3]
[367128772,1750665054161,-490.0,0.00027397,3]
[367128773,1750665054172,-490.50596159,0.00027397,3]
[367128774,1750665054183,-490.0,0.00027397,3]
[367128775,1750665054193,-490.0,0.00027397,3]
[367128776,1750665054205,-490.0,0.00027397,3]
[367128777,1750665054216,-490.0,0.00027397,3]
[367128778,1750665054226,-218.6660008,0.00027397,3]
[367128779,1750665054237,-648.95,0.00027397,3]
[367128780,1750665054248,-815.02,0.00027397,3]
[367128781,1750665054260,-490.0,0.00027397,3]
[367128782,1750665054271,-830.59,0.00027397,3]
[367128783,1750665054282,-490.0,0.00027397,3]
[367128784,1750665054292,-160.0,0.00027397,3]
[367128785,1750665054303,-496.15846898,0.00027397,3]
[367128786,1750665054314,-490.0,0.00027397,3]
[367128787,1750665054326,-490.0,0.00027397,3]
[367128788,1750665054337,-435.9400169,0.00027397,3]
[367128789,1750665054348,-1055.32,0.00027397,3]
[367128790,1750665054359,-490.0,0.00027397,3]
[367128791,1750665054370,-490.0,0.00027397,3]
[367128792,1750665054381,-490.0,0.00027397,3]
[367128793,1750665054392,-490.0,0.00027397,3]
[367128794,1750665054404,-599.34,0.00027397,3]
[367128795,1750665054415,-490.0,0.00027397,3]
[367128796,1750665054426,-1112.63,0.00027397,3]
[367128797,1750665054437,-490.0,0.00027397,3]
[367128798,1750665054448,-490.0,0.00027397,3]
[367128799,1750665054459,-490.27535494,0.00027397,3]
[367128800,1750665054471,-490.0,0.00027397,3]
[367128801,1750665054482,-1313.29,0.00027397,3]
[367128802,1750665054493,-573.3,0.00027397,3]
[367128803,1750665054505,-491.84633019,0.00027397,3]
[367128804,1750665054517,-490.0,0.00027397,3]
[367128805,1750665054528,-490.0,0.00027397,3]
[367128806,1750665054540,-490.0,0.00027397,3]
[367128807,1750665054552,-546.93,0.00027397,3]
[367128808,1750665054563,-490.0,0.00027397,3]
[367128809,1750665054573,-878.57,0.00027397,3]
[367128810,1750665054584,-490.0,0.00027397,3]
[367128811,1750665054595,-1631.12,0.00027397,3]
[367128812,1750665054607,-490.86987747,0.00027397,3]
[367128813,1750665054618,-490.0,0.00027397,3]
[367128814,1750665054630,-490.0,0.00027397,3]
[367128815,1750665054642,-735.78,0.00027397,3]
[367128816,1750665054653,-211.63790771,0.00027397,3]
[367128817,1750665054665,-636.12,0.00027397,3]
[367128818,1750665054676,-2393.15,0.00027397,3]
[367128819,1750665054688,-490.0,0.00027397,3]
[367128820,1750665054699,-490.0,0.00027397,3]
[367128821,1750665054710,-490.0,0.00027397,3]
[367128822,1750665054723,-490.0,0.00027397,3]
[367128823,1750665054735,-490.0,0.00027397,3]
[367128824,1750665054746,-490.0,0.00027397,3]
[367128825,1750665054759,-494.91,0.00027397,3]
[367128826,1750665054771,-490.0,0.00027397,3]
[367128827,1750665054782,-490.0,0.00027397,3]
[367128828,1750665054793,-490.0,0.00027397,3]
[367128829,1750665054804,-682.52,0.00027397,3]
[367128830,1750665054815,-490.0,0.00027397,3]
[367128831,1750665054827,-490.0,0.00027397,3]
[367128832,1750665054838,-992.14,0.00027397,3]
[367128833,1750665054849,-792.47,0.00027397,3]
[367128834,1750665054861,-490.0,0.00027397,3]
[367128835,1750665054872,-490.0,0.00027397,3]
[367128836,1750665054884,-490.0,0.00027397,3]